Cogmind - Beta 9.6 @@@ ROGUE MODE // 2020.04.14 @ 10:40:57 Player: Vectis Result: Escaped! Performance ------------- Evolutions (9) 4500 Regions Visited (19) 3800 Robots Destroyed (0) 0 Value Destroyed (160) 160 Prototype IDs (34) 680 Alien Tech Used (0) 0 Bonus (17293) 17293 TOTAL SCORE: 26433 Bonus ------- Pacifist 10669 Triggered Max Security 1000 Follower Combat Kills 25 Aligned with FarCom 300 Win 3000 Win Speed 2299 Cogmind --------- Core Integrity 1600/1600 Matter 1/300 Energy 736/740 System Corruption 0% Temperature Cool (4) Movement Flying (28) Location To Epsilon Eridani Parts ------- > --- POWER (2) -------- Quantum Reactor Light Quantum Reactor > --- PROPULSION (7) --- Field Propulsion Array Field Propulsion Array Field Propulsion Array Cooled Q-thruster > --- UTILITY (14) ----- Compact Battery Stasis Canceller Reaction Control System Cloaking Device Cloaking Device Thermal Shield Point Defense Array Makeshift Hacking Suite Makeshift Hacking Suite Improved Hacking Suite Experimental Hacking Suite System Shield System Shield > --- WEAPON (2) ------- Heavy Pick > --- INVENTORY (4) ---- Particle Reactor Peak State ------------ > --- POWER ------------ Quantum Reactor Light Quantum Reactor > --- PROPULSION ------- Field Propulsion Array Field Propulsion Array Field Propulsion Array Cooled Q-thruster > --- UTILITY ---------- Compact Battery Stasis Canceller Reaction Control System Cloaking Device Cloaking Device Thermal Shield Point Defense Array Makeshift Hacking Suite Makeshift Hacking Suite Improved Hacking Suite Experimental Hacking Suite System Shield System Shield > --- WEAPON ----------- Heavy Pick > --- INVENTORY -------- Particle Reactor [Rating: 142] Favorites ----------- Power Micro Nuclear Core Engine Angular Momentum Engine Power Core Micro Nuclear Core Reactor Light Quantum Reactor Propulsion Xenon Bombardment Thruster Treads Light Treads Leg Improved Titanium Leg Wheel Armored Wheel Hover Unit Combat Gravmag System Flight Unit Xenon Bombardment Thruster Utility Makeshift Hacking Suite Device Cloaking Device Storage Medium Storage Unit Processor Improved Terrain Scan Processor Hackware Makeshift Hacking Suite Protection Improved Light Armor Plating Weapon Makeshift Spear Energy Gun Medium Laser Impact Weapon Flail Slashing Weapon Chainsword Piercing Weapon Makeshift Spear Special Melee Weapon Improved Datajack Build | -11 -10 -10 -10 -9 -8 -7 -7 -7 -7 -7 -6 -6 -6 -5 -4 -3 -3 -2 -1 ------- Run | Scr Mat Min Exi Min Mat Fac Was Fac Low Low Fac Low Low Fac Fac Res Tes Res Acc Slots Evolved 18 | . . . . . 4 2 . . . . 2 . . 2 2 2 . 2 2 Power 1 | . . . . . . 1 . . . . . . . . . . . . . Propulsion 5 | . . . . . 2 1 . . . . . . . . . . . 1 1 Utility 12 | . . . . . 2 . . . . . 2 . . 2 2 2 . 1 1 Weapon . | . . . . . . . . . . . . . . . . . . . . Parts Attached 98 | 3 1 1 1 1 . 5 3 27 4 1 10 1 . 7 5 3 2 11 12 Power 12 | . . . . . . . . 3 1 . 2 . . . . . 1 3 2 Engine 2 | . . . . . . . . 1 . . 1 . . . . . . . . Core 7 | . . . . . . . . 2 1 . 1 . . . . . 1 2 . Reactor 3 | . . . . . . . . . . . . . . . . . . 1 2 Propulsion 40 | 2 1 . . . . 1 2 15 1 . 5 . . 3 1 1 1 4 3 Treads 3 | 2 . . . . . . . 1 . . . . . . . . . . . Leg 2 | . . . . . . . . 2 . . . . . . . . . . . Wheel 7 | . . . . . . . . 7 . . . . . . . . . . . Hover 4 | . . . . . . 1 2 1 . . . . . . . . . . . Flight 24 | . 1 . . . . . . 4 1 . 5 . . 3 1 1 1 4 3 Utility 37 | . . . 1 1 . 2 1 7 2 1 3 . . 4 3 2 . 3 7 Device 20 | . . . 1 1 . . 1 4 . . 1 . . 3 . 2 . 1 6 Storage 2 | . . . . . . . . . . 1 . . . . . . . . 1 Processor 2 | . . . . . . 2 . . . . . . . . . . . . . Hackware 12 | . . . . . . . . 2 2 . 2 . . 1 3 . . 2 . Protection 1 | . . . . . . . . 1 . . . . . . . . . . . Artifact . | . . . . . . . . . . . . . . . . . . . . Weapon 9 | 1 . 1 . . . 2 . 2 . . . 1 . . 1 . . 1 . Energy Gun 1 | 1 . . . . . . . . . . . . . . . . . . . Energy Cannon . | . . . . . . . . . . . . . . . . . . . . Ballistic Gun . | . . . . . . . . . . . . . . . . . . . . Ballistic Cannon . | . . . . . . . . . . . . . . . . . . . . Launcher . | . . . . . . . . . . . . . . . . . . . . Special Weapon . | . . . . . . . . . . . . . . . . . . . . Impact Weapon 1 | . . . . . . . . 1 . . . . . . . . . . . Slashing Weapon 1 | . . . . . . . . . . . . 1 . . . . . . . Piercing Weapon 3 | . . 1 . . . . . . . . . . . . 1 . . 1 . Special Melee Weapon 3 | . . . . . . 2 . 1 . . . . . . . . . . . Unidentified Prototypes 5 | . . . . . . . 1 1 . . 1 . . 1 . . . 1 . Parts Lost 24 | . . . . . . 4 . 2 1 . 2 . . . 1 1 6 7 . Power 3 | . . . . . . . . . 1 . 1 . . . . . 1 . . Propulsion 13 | . . . . . . 3 . 1 . . 1 . . . 1 1 3 3 . Utility 6 | . . . . . . 1 . . . . . . . . . . 1 4 . Weapon 2 | . . . . . . . . 1 . . . . . . . . 1 . . Highest Loss Streak 6 | . . . . . . 2 . 1 1 . 1 . . . 1 1 6 4 . Average Slot Usage (%) 74 | . 42 42 47 57 36 37 34 86 94 100 96 100 100 99 98 95 92 54 62 Engine 1 | . . . . . . . . . . . 2 6 6 5 5 4 3 . . Core 5 | . . . . . . . . 10 13 15 9 6 6 5 5 4 4 3 . Treads 2 | . 17 14 14 14 9 1 . 1 . . . . . . . . . . . Wheel 6 | . . . . . . . . 27 . . . . . . . . . . . Hover 1 | . . . . . . 4 11 4 . . . . . . . . . . . Flight 14 | . 10 14 14 14 9 4 . . 33 38 33 33 33 28 26 23 21 5 15 Device 7 | . . . 4 14 9 5 . 15 5 . . . . 5 4 9 8 1 9 Storage 2 | . . . . . . . . . . 4 6 6 6 5 5 4 4 3 3 Processor 2 | . . . . . . 8 15 4 . . . . . . . . . . . Hackware 18 | . . . . . . . . 5 19 25 29 33 33 35 40 42 42 34 24 Impact Weapon 1 | . . . . . . . . . 7 7 6 6 6 5 4 . . . . Piercing Weapon 5 | . . 10 14 14 9 7 7 7 7 7 6 4 . . . 4 4 2 4 Special Melee Weapon 1 | . . . . . . 2 . 4 . . . . . . . . . . . Naked Turns . | . . . . . . . . . . . . . . . . . . . . Heaviest Build 52 | 2 2 2 3 3 3 4 2 20 20 24 31 32 32 33 36 36 36 33 52 Greatest Support 83 | 20 3 3 3 3 3 3 3 60 31 31 33 33 33 36 36 37 38 46 83 Greatest Overweight (x) 1 | . . . . . . 1 . . . . . . . 1 . . . . . Average Overweight (x) . | . . . . . . . . . . . . . . . . . . . . Largest Inventory Capacity 8 | 4 4 4 4 4 4 4 4 4 4 8 8 8 8 8 8 8 8 8 4 Average Capacity 5 | 4 4 4 4 4 4 4 4 4 4 6 8 8 8 8 8 8 8 7 4 Most Carried 8 | 4 4 4 4 4 4 4 4 4 4 5 8 8 8 8 8 8 7 5 4 Average Carried 4 | 2 4 4 3 3 4 3 4 3 3 4 5 7 8 7 7 7 6 3 2 Final Capacity 8 | 4 4 4 4 4 4 4 4 4 4 8 8 8 8 8 8 8 8 4 4 Final Carried 8 | 4 4 4 2 4 4 4 4 3 4 5 7 8 8 8 8 7 5 4 1 Class Distribution -------------------- 41% | Mutant 28% | Wizard-Sprinter 12% | Hacker-Sprinter 8% | Wizard-Mutant Dominant Class ---------------- Mutant | -10/Materials Mutant | -10/Mines Mutant | -10/Exiles Mutant | -9/Mines Mutant | -8/Materials Mutant | -7/Factory Mutant | -7/Waste Mutant | -7/Factory Hacker-Sprinter | -7/Lower Caves Hacker-Sprinter | -7/Lower Caves Hacker-Sprinter | -6/Factory Hacker-Sprinter | -6/Lower Caves Hacker-Sprinter | -6/Lower Caves Wizard-Sprinter | -5/Factory Wizard-Sprinter | -4/Factory Wizard-Sprinter | -3/Research Wizard-Sprinter | -3/Testing Wizard-Mutant | -2/Research Wizard-Sprinter | -1/Access Resources | -11 -10 -10 -10 -9 -8 -7 -7 -7 -7 -7 -6 -6 -6 -5 -4 -3 -3 -2 -1 ----------- Run | Scr Mat Min Exi Min Mat Fac Was Fac Low Low Fac Low Low Fac Fac Res Tes Res Acc Matter Collected 702 | 100 . . . . . . . 269 99 35 . 117 . . . . 82 . . Remotely . | . . . . . . . . . . . . . . . . . . . . Salvage Created . | . . . . . . . . . . . . . . . . . . . . Parts . | . . . . . . . . . . . . . . . . . . . . Haulers Intercepted . | . . . . . . . . . . . . . . . . . . . . Recyclers Shooed . | . . . . . . . . . . . . . . . . . . . . Parts Field Recycled . | . . . . . . . . . . . . . . . . . . . . Retrieved Matter . | . . . . . . . . . . . . . . . . . . . . Parts Self-Destructed . | . . . . . . . . . . . . . . . . . . . . Prevented . | . . . . . . . . . . . . . . . . . . . . Kills | -11 -10 -10 -10 -9 -8 -7 -7 -7 -7 -7 -6 -6 -6 -5 -4 -3 -3 -2 -1 ------- Run | Scr Mat Min Exi Min Mat Fac Was Fac Low Low Fac Low Low Fac Fac Res Tes Res Acc Combat Hostiles Destroyed . | . . . . . . . . . . . . . . . . . . . . Classes Destroyed . | . . . . . . . . . . . . . . . . . . . . Best Kill Streak . | . . . . . . . . . . . . . . . . . . . . Combat Bots Only . | . . . . . . . . . . . . . . . . . . . . Max Kills in Single Turn . | . . . . . . . . . . . . . . . . . . . . Gunslinging . | . . . . . . . . . . . . . . . . . . . . Exploded . | . . . . . . . . . . . . . . . . . . . . Melee . | . . . . . . . . . . . . . . . . . . . . Uniques/NPCs Destroyed . | . . . . . . . . . . . . . . . . . . . . Combat | -11 -10 -10 -10 -9 -8 -7 -7 -7 -7 -7 -6 -6 -6 -5 -4 -3 -3 -2 -1 -------- Run | Scr Mat Min Exi Min Mat Fac Was Fac Low Low Fac Low Low Fac Fac Res Tes Res Acc Damage Taken 3883 | . 32 59 . 31 190 358 . 735 148 . 132 20 . . 86 90 722 1257 23 Core 1276 | . . . . . 88 228 . 72 41 . 35 . . . . 30 172 610 . Absorbed by Shields . | . . . . . . . . . . . . . . . . . . . . Core Remaining (%) 87 | 100 . . . 100 84 . . . . 51 . . 95 100 100 . 84 57 100 Volleys Fired . | . . . . . . . . . . . . . . . . . . . . Largest . | . . . . . . . . . . . . . . . . . . . . Hottest . | . . . . . . . . . . . . . . . . . . . . Shots Fired . | . . . . . . . . . . . . . . . . . . . . Gun . | . . . . . . . . . . . . . . . . . . . . Cannon . | . . . . . . . . . . . . . . . . . . . . Launcher . | . . . . . . . . . . . . . . . . . . . . Special . | . . . . . . . . . . . . . . . . . . . . Kinetic . | . . . . . . . . . . . . . . . . . . . . Thermal . | . . . . . . . . . . . . . . . . . . . . Explosive . | . . . . . . . . . . . . . . . . . . . . Electromagnetic . | . . . . . . . . . . . . . . . . . . . . Robot Hit Streak . | . . . . . . . . . . . . . . . . . . . . Robot Miss Streak . | . . . . . . . . . . . . . . . . . . . . Penetration Max . | . . . . . . . . . . . . . . . . . . . . Secondary Targets . | . . . . . . . . . . . . . . . . . . . . Shots Hit Robots 9 | . . . . . . 1 . 8 . . . . . . . . . . . Core Hits . | . . . . . . . . . . . . . . . . . . . . Critical Hits . | . . . . . . . . . . . . . . . . . . . . Critical Kills . | . . . . . . . . . . . . . . . . . . . . Critical Parts Destroyed . | . . . . . . . . . . . . . . . . . . . . Melee Attacks 149 | . . 1 . . 18 24 . 34 7 . 13 . . 16 12 6 5 11 2 Impact 6 | . . . . . . . . . 1 . 2 . . 2 1 . . . . Slashing 25 | . . . . . . . . . . . . . . 14 11 . . . . Piercing 108 | . . 1 . . 18 22 . 26 6 . 11 . . . . 6 5 11 2 Sneak Attacks 8 | . . . . . . . . 8 . . . . . . . . . . . Combat Hostiles . | . . . . . . . . . . . . . . . . . . . . Follow-up Attacks . | . . . . . . . . . . . . . . . . . . . . Damage Inflicted . | . . . . . . . . . . . . . . . . . . . . Guns . | . . . . . . . . . . . . . . . . . . . . Cannons . | . . . . . . . . . . . . . . . . . . . . Explosions . | . . . . . . . . . . . . . . . . . . . . Melee . | . . . . . . . . . . . . . . . . . . . . Ramming . | . . . . . . . . . . . . . . . . . . . . Kinetic . | . . . . . . . . . . . . . . . . . . . . Thermal . | . . . . . . . . . . . . . . . . . . . . Explosive . | . . . . . . . . . . . . . . . . . . . . Electromagnetic . | . . . . . . . . . . . . . . . . . . . . Impact . | . . . . . . . . . . . . . . . . . . . . Slashing . | . . . . . . . . . . . . . . . . . . . . Piercing . | . . . . . . . . . . . . . . . . . . . . Highest Corruption 13 | . . . . . . . 10 13 9 9 . . . . . 1 1 5 . Average Corruption 7 | . . . . . . . 10 10 9 9 . . . . . 1 1 4 . Corruption Purged 7 | . . . . . . . . 7 . . . . . . . . . . . Effects 55 | . . . . . . . 1 43 4 1 . . . . . . . 6 . Message Errors 9 | . . . . . . . . 5 1 1 . . . . . . . 2 . Matter Fused 11 | . . . . . . . . 9 1 . . . . . . . . 1 . Heat Flow Errors 9 | . . . . . . . 1 8 . . . . . . . . . . . Energy Discharges 6 | . . . . . . . . 5 1 . . . . . . . . . . Data Loss (minor) 10 | . . . . . . . . 7 1 . . . . . . . . 2 . Data Loss (major) 2 | . . . . . . . . 2 . . . . . . . . . . . Misdirections 4 | . . . . . . . . 4 . . . . . . . . . . . Targeting Errors 4 | . . . . . . . . 3 . . . . . . . . . 1 . Overload Shots . | . . . . . . . . . . . . . . . . . . . . Overflow Damage . | . . . . . . . . . . . . . . . . . . . . Projectiles . | . . . . . . . . . . . . . . . . . . . . Explosions . | . . . . . . . . . . . . . . . . . . . . Melee . | . . . . . . . . . . . . . . . . . . . . Knockbacks . | . . . . . . . . . . . . . . . . . . . . Impact . | . . . . . . . . . . . . . . . . . . . . Kinetic . | . . . . . . . . . . . . . . . . . . . . Secondary . | . . . . . . . . . . . . . . . . . . . . Self-Inflicted Damage . | . . . . . . . . . . . . . . . . . . . . Shots . | . . . . . . . . . . . . . . . . . . . . Rammed . | . . . . . . . . . . . . . . . . . . . . Targets Rammed . | . . . . . . . . . . . . . . . . . . . . Kicked . | . . . . . . . . . . . . . . . . . . . . Crushed . | . . . . . . . . . . . . . . . . . . . . Highest Temperature 355 | . . . . . . . 223 273 135 50 355 194 34 90 4 8 22 . . Average Temperature 56 | . . . . . . . 121 126 42 20 61 89 16 21 2 4 22 . . Received Heat Transfer 381 | . . 27 . 18 9 . . 36 27 . 48 9 . . . 18 99 90 . Effects 2 | . . . . . . . . 1 . . 1 . . . . . . . . Shutdowns 1 | . . . . . . . . . . . 1 . . . . . . . . Interference 1 | . . . . . . . . 1 . . . . . . . . . . . Siege Activations . | . . . . . . . . . . . . . . . . . . . . Robots Corrupted . | . . . . . . . . . . . . . . . . . . . . Combat Hostiles . | . . . . . . . . . . . . . . . . . . . . Parts Fried . | . . . . . . . . . . . . . . . . . . . . Impact Corruptions . | . . . . . . . . . . . . . . . . . . . . Robots Melted . | . . . . . . . . . . . . . . . . . . . . Combat Hostiles . | . . . . . . . . . . . . . . . . . . . . Parts Melted . | . . . . . . . . . . . . . . . . . . . . Heat Transferred . | . . . . . . . . . . . . . . . . . . . . Parts Sabotaged 2 | . . . . . . . . . . . . . . . . . 2 . . Parts Stolen . | . . . . . . . . . . . . . . . . . . . . Parts Stripped . | . . . . . . . . . . . . . . . . . . . . Power Chain Reactions . | . . . . . . . . . . . . . . . . . . . . Missiles Intercepted . | . . . . . . . . . . . . . . . . . . . . Alert | -11 -10 -10 -10 -9 -8 -7 -7 -7 -7 -7 -6 -6 -6 -5 -4 -3 -3 -2 -1 ------- Run | Scr Mat Min Exi Min Mat Fac Was Fac Low Low Fac Low Low Fac Fac Res Tes Res Acc Peak Influence 1662 | . 30 11 . 54 61 36 27 83 . . 36 . . 33 53 101 1662 1110 754 Average Influence 206 | . 15 11 . 25 22 23 15 27 . . 12 . . 18 27 78 1631 865 305 Maximum Alert Level 5 | . . . . . . . . . . . . . . . . . 5 4 3 Low Security (%) 78 | 100 100 100 . 100 100 100 100 100 . . 100 . . 100 100 100 . . . Level 1 7 | . . . . . . . . . . . . . . . . . . 14 84 Level 2 . | . . . . . . . . . . . . . . . . . . . 12 Level 3 5 | . . . . . . . . . . . . . . . . . . 55 2 Level 4 2 | . . . . . . . . . . . . . . . . . . 28 . Level 5 . | . . . . . . . . . . . . . . . . . . . . High Security . | . . . . . . . . . . . . . . . . . . . . Max Security 5 | . . . . . . . . . . . . . . . . . 99 . . Squads Dispatched 18 | . 2 . . 1 . 4 . 1 . . . . . . . 1 6 2 1 Investigation 7 | . 1 . . 1 . 3 . . . . . . . . . . . 1 1 Extermination 3 | . . . . . . 1 . 1 . . . . . . . . . 1 . Reinforcement 2 | . 1 . . . . . . . . . . . . . . 1 . . . Assault 6 | . . . . . . . . . . . . . . . . . 6 . . Garrison . | . . . . . . . . . . . . . . . . . . . . Intercept . | . . . . . . . . . . . . . . . . . . . . Construction Impeded . | . . . . . . . . . . . . . . . . . . . . Haulers Reinforced . | . . . . . . . . . . . . . . . . . . . . Stealth | -11 -10 -10 -10 -9 -8 -7 -7 -7 -7 -7 -6 -6 -6 -5 -4 -3 -3 -2 -1 --------- Run | Scr Mat Min Exi Min Mat Fac Was Fac Low Low Fac Low Low Fac Fac Res Tes Res Acc Distress Signals 4 | . . . . . 1 . . 1 . . 1 . . . . 1 . . . Communications Jammed . | . . . . . . . . . . . . . . . . . . . . Distress Signals . | . . . . . . . . . . . . . . . . . . . . Times Spotted 144 | . 4 5 . 2 6 10 6 11 9 . 7 2 3 . 3 8 43 20 5 Peak Tracking Total 33 | . 3 4 . 2 6 9 6 4 7 . 4 3 3 . 2 6 33 11 4 Tactical Retreats 21 | . . 2 . . . 1 . 3 3 . 3 2 . . 1 1 2 3 . Traps | -11 -10 -10 -10 -9 -8 -7 -7 -7 -7 -7 -6 -6 -6 -5 -4 -3 -3 -2 -1 ------- Run | Scr Mat Min Exi Min Mat Fac Was Fac Low Low Fac Low Low Fac Fac Res Tes Res Acc Traps Triggered 10 | . 1 . . . . 2 . . . . . . . 1 1 1 2 2 . Indirectly . | . . . . . . . . . . . . . . . . . . . . Trap Hack Attempts 6 | . . . . . . . . 6 . . . . . . . . . . . Triggered . | . . . . . . . . . . . . . . . . . . . . Disarmed . | . . . . . . . . . . . . . . . . . . . . Reprogrammed . | . . . . . . . . . . . . . . . . . . . . Reused . | . . . . . . . . . . . . . . . . . . . . Traps Reconfigurated 3 | . . . . . . 3 . . . . . . . . . . . . . Traps Extracted . | . . . . . . . . . . . . . . . . . . . . Installed . | . . . . . . . . . . . . . . . . . . . . Triggered . | . . . . . . . . . . . . . . . . . . . . Machines | -11 -10 -10 -10 -9 -8 -7 -7 -7 -7 -7 -6 -6 -6 -5 -4 -3 -3 -2 -1 ---------- Run | Scr Mat Min Exi Min Mat Fac Was Fac Low Low Fac Low Low Fac Fac Res Tes Res Acc Machines Disabled 4 | . . . . . . . . . . . . . . . . . 4 . . Max in Single Turn 1 | . . . . . . . . . . . . . . . . . 1 . . Machines Sabotaged 2 | . . . . . . . . . . . . . . . . . . 1 1 Garrisons Compromised . | . . . . . . . . . . . . . . . . . . . . Overloaded Fab Kills . | . . . . . . . . . . . . . . . . . . . . Fab Network Shutdowns 1 | . . . . . . . . . . . . . . . . . . . 1 Hacking | -11 -10 -10 -10 -9 -8 -7 -7 -7 -7 -7 -6 -6 -6 -5 -4 -3 -3 -2 -1 --------- Run | Scr Mat Min Exi Min Mat Fac Was Fac Low Low Fac Low Low Fac Fac Res Tes Res Acc Machines Accessed 51 | . . . 1 1 1 5 . 8 1 . 7 1 . 5 8 4 . 6 3 Terminals 25 | . . . . . 1 4 . 3 . . 4 . . 2 3 3 . 3 2 Fabricators 9 | . . . . . . . . 2 . . 2 . . 1 1 1 . 1 1 Repair Stations 2 | . . . . . . . . 1 . . . . . . . . . 1 . Recycling Units 4 | . . . . . . . . . . . . . . 2 2 . . . . Scanalyzers 3 | . . . . . . 1 . . . . 1 . . . 1 . . . . Garrison Access 4 | . . . . . . . . 2 . . . . . . 1 . . 1 . Total Hacks 216 | . . . 1 1 3 14 . 22 1 . 34 1 . 15 43 28 . 35 18 Successful 163 | . . . 1 1 2 6 . 10 1 . 25 1 . 12 41 23 . 29 11 Failed 53 | . . . . . 1 8 . 12 . . 9 . . 3 2 5 . 6 7 Catastrophic 9 | . . . . . . 3 . 2 . . . . . . . 1 . 1 2 Database Lockouts . | . . . . . . . . . . . . . . . . . . . . Manual 86 | . . . 1 . 3 8 . 11 . . 11 . . 2 14 11 . 20 5 Terminals 141 | . . . . . 3 13 . 15 . . 21 . . 6 21 24 . 27 11 Fabricators 26 | . . . . . . . . 2 . . 5 . . 4 2 4 . 2 7 Repair Stations 6 | . . . . . . . . 2 . . . . . . . . . 4 . Recycling Units 13 | . . . . . . . . . . . . . . 5 8 . . . . Scanalyzers 20 | . . . . . . 1 . . . . 8 . . . 11 . . . . Garrison Access 6 | . . . . . . . . 3 . . . . . . 1 . . 2 . Terminal Hacks 80 | . . . 1 1 1 4 . 5 1 . 11 1 . 3 15 17 . 17 3 Record 9 | . . . . . . 1 . . . . . . . . 1 1 . 6 . Part Schematic 4 | . . . . . . . . . . . . . . . 3 1 . . . Robot Schematic 2 | . . . . . . . . . . . . . . . 1 1 . . . Robot Analysis 2 | . . . . . . . . . . . . . . . . 2 . . . Prototype ID Bank 2 | . . . . . . . . . . . . . . . 1 1 . . . Open Door 4 | . . . . 1 . . . . 1 . . 1 . . . . . . 1 Level Access Points 3 | . . . . . . . . . . . . . . . 1 . . 1 1 Branch Access Points 3 | . . . . . . . . . . . 1 . . . 1 1 . . . Emergency Access Points 2 | . . . . . 1 . . . . . . . . . . 1 . . . Machine Index 2 | . . . . . . . . . . . . . . . . 1 . . 1 Terminal Index 5 | . . . . . . 1 . 1 . . 1 . . 1 . 1 . . . Fabricator Index 2 | . . . . . . . . . . . 1 . . . . 1 . . . Recycling Unit Index 2 | . . . . . . . . . . . . . . . 1 1 . . . Garrison Index 1 | . . . . . . . . . . . 1 . . . . . . . . Alert Level 4 | . . . . . . . . . . . 1 . . . . 1 . 2 . Unreport Threat 6 | . . . . . . . . . . . . . . . . . . 6 . Locate Traps 2 | . . . . . . . . 1 . . 1 . . . . . . . . Dispatch Records 2 | . . . . . . 1 . . . . . . . . 1 . . . . Maintenance Status 1 | . . . . . . . . . . . . . . . 1 . . . . Security Status 1 | . . . . . . . . . . . . . . . 1 . . . . Patrol Status 3 | . . . . . . . . . . . 1 . . 1 1 . . . . Recall Investigation 1 | . . . . . . . . . . . . . . . . . . 1 . Recall Extermination 1 | . . . . . . . . . . . . . . . . . . 1 . Recall Reinforcements 1 | . . . . . . . . . . . . . . . . 1 . . . Registered Components 3 | . . . . . . . . 1 . . 1 . . . 1 . . . . Registered Prototypes 1 | . . . . . . . . 1 . . . . . . . . . . . Zone Layout 10 | . . . . . . 1 . 1 . . 3 . . 1 1 3 . . . EX-Prototype ID Bank 1 | . . . 1 . . . . . . . . . . . . . . . . Fabricator Hacks 24 | . . . . . . . . 2 . . 4 . . 4 2 4 . 2 6 Network Status 3 | . . . . . . . . 2 . . . . . . . 1 . . . Load Schematic 10 | . . . . . . . . . . . 2 . . 1 1 2 . 1 3 Build 11 | . . . . . . . . . . . 2 . . 3 1 1 . 1 3 Repair Station Hacks 4 | . . . . . . . . . . . . . . . . . . 4 . Scan Component 2 | . . . . . . . . . . . . . . . . . . 2 . Repair 2 | . . . . . . . . . . . . . . . . . . 2 . Recycling Unit Hacks 11 | . . . . . . . . . . . . . . 3 8 . . . . Recycle Component 5 | . . . . . . . . . . . . . . 1 4 . . . . Process 3 | . . . . . . . . . . . . . . 1 2 . . . . Retrieve Matter 3 | . . . . . . . . . . . . . . 1 2 . . . . Scanalyzer 19 | . . . . . . . . . . . 8 . . . 11 . . . . Insert Component 8 | . . . . . . . . . . . 3 . . . 5 . . . . Analyze 11 | . . . . . . . . . . . 5 . . . 6 . . . . Garrison Access Hacks . | . . . . . . . . . . . . . . . . . . . . Unauthorized Hacks 25 | . . . . . 1 2 . 3 . . 2 . . 2 5 2 . 6 2 Terminals 21 | . . . . . 1 2 . 2 . . 2 . . 2 4 2 . 4 2 Track 1 | . . . . . . . . . . . . . . . 1 . . . . Assimilate 1 | . . . . . . . . . . . . . . . . . . 1 . Botnet 17 | . . . . . 1 2 . 2 . . 2 . . 2 3 2 . 2 1 Sabotage 2 | . . . . . . . . . . . . . . . . . . 1 1 Fabricators . | . . . . . . . . . . . . . . . . . . . . Repair Stations 1 | . . . . . . . . 1 . . . . . . . . . . . Mechanics 1 | . . . . . . . . 1 . . . . . . . . . . . Recycling Units . | . . . . . . . . . . . . . . . . . . . . Scanalyzers . | . . . . . . . . . . . . . . . . . . . . Garrison Access 3 | . . . . . . . . . . . . . . . 1 . . 2 . Redirect 1 | . . . . . . . . . . . . . . . . . . 1 . Reprogram 2 | . . . . . . . . . . . . . . . 1 . . 1 . Data Cores Recovered . | . . . . . . . . . . . . . . . . . . . . Used . | . . . . . . . . . . . . . . . . . . . . Hacking Detections 38 | . . . . . 1 5 . 5 . . 5 . . 5 5 4 . 5 3 Full Trace Events 3 | . . . . . . 3 . . . . . . . . . . . . . Feedback Events . | . . . . . . . . . . . . . . . . . . . . Feedback Blocked . | . . . . . . . . . . . . . . . . . . . . Robot Schematics Acquired 2 | . . . . . . . . . . . . . . . 1 1 . . . Robots Built . | . . . . . . . . . . . . . . . . . . . . Matter . | . . . . . . . . . . . . . . . . . . . . Time . | . . . . . . . . . . . . . . . . . . . . Total Robot Build Rating . | . . . . . . . . . . . . . . . . . . . . Part Schematics Acquired 12 | . . . . . . . . . . . 3 . . . 8 1 . . . Parts Built 17 | . . . . . . . . . . . 4 . . 6 1 1 . 1 4 Matter 2251 | . . . . . . . . . . . 336 . . 504 168 234 . 351 658 Time 544 | . . . . . . . . . . . 126 . . 126 28 39 . 62 163 Total Part Build Rating 84 | . . . . . . . . . . . 16 . . 24 4 7 . 7 26 Parts Repaired 2 | . . . . . . . . . . . . . . . . . . 2 . Time 38 | . . . . . . . . . . . . . . . . . . 38 . Parts Recycled 5 | . . . . . . . . . . . . . . 1 4 . . . . Recycled Matter 140 | . . . . . . . . . . . . . . . 140 . . . . Retrieved Matter 140 | . . . . . . . . . . . . . . . 140 . . . . Retrieved Components . | . . . . . . . . . . . . . . . . . . . . Parts Scanalyzed 8 | . . . . . . . . . . . 3 . . . 5 . . . . Part Schematics Acquired 8 | . . . . . . . . . . . 3 . . . 5 . . . . Parts Damaged . | . . . . . . . . . . . . . . . . . . . . Bothacking | -11 -10 -10 -10 -9 -8 -7 -7 -7 -7 -7 -6 -6 -6 -5 -4 -3 -3 -2 -1 ------------ Run | Scr Mat Min Exi Min Mat Fac Was Fac Low Low Fac Low Low Fac Fac Res Tes Res Acc Used RIF Installer . | . . . . . . . . . . . . . . . . . . . . Robots Hacked 7 | . . . . . . 1 . 6 . . . . . . . . . . . Non-combat 7 | . . . . . . 1 . 6 . . . . . . . . . . . Combat . | . . . . . . . . . . . . . . . . . . . . Robot Hacks Applied 7 | . . . . . . 1 . 6 . . . . . . . . . . . parse_system 1 | . . . . . . . . 1 . . . . . . . . . . . no_distress 3 | . . . . . . . . 3 . . . . . . . . . . . find_fabricator 1 | . . . . . . . . 1 . . . . . . . . . . . find_recycling 1 | . . . . . . . . 1 . . . . . . . . . . . check_alert 1 | . . . . . . 1 . . . . . . . . . . . . . Relay Couplers Released . | . . . . . . . . . . . . . . . . . . . . Robots Rewired . | . . . . . . . . . . . . . . . . . . . . Allies Hacked . | . . . . . . . . . . . . . . . . . . . . Hacks Repelled . | . . . . . . . . . . . . . . . . . . . . Allies | -11 -10 -10 -10 -9 -8 -7 -7 -7 -7 -7 -6 -6 -6 -5 -4 -3 -3 -2 -1 -------- Run | Scr Mat Min Exi Min Mat Fac Was Fac Low Low Fac Low Low Fac Fac Res Tes Res Acc Total Allies 6 | . . . . 2 . . . . . . . . . . . . . 4 . Largest Group 3 | . . . . 2 . . . . . . . . . . . . . 3 . Highest-Rated Group 270 | . . . . 46 . . . . . . . . . . . . . 270 . Highest-Rated Ally 90 | . . . . 31 . . . . . . . . . . . . . 90 . Total Orders 128 | . . . . . . . . . . . . . . 39 71 17 . 1 . STAY 1 | . . . . . . . . . . . . . . . 1 . . . . GOTO 123 | . . . . . . . . . . . . . . 36 69 17 . 1 . ROAM 1 | . . . . . . . . . . . . . . . 1 . . . . FOLLOW 3 | . . . . . . . . . . . . . . 3 . . . . . Ally Attacks 15 | . . . . 5 . . . . . . . . . . . . . 10 . Total Damage 285 | . . . . 63 . . . . . . . . . . . . . 222 . Kills 2 | . . . . 2 . . . . . . . . . . . . . . . Allies Corrupted . | . . . . . . . . . . . . . . . . . . . . Allies Melted . | . . . . . . . . . . . . . . . . . . . . Intel | -11 -10 -10 -10 -9 -8 -7 -7 -7 -7 -7 -6 -6 -6 -5 -4 -3 -3 -2 -1 ------- Run | Scr Mat Min Exi Min Mat Fac Was Fac Low Low Fac Low Low Fac Fac Res Tes Res Acc Robot Analysis Total 2 | . . . . . . . . . . . . . . . . 2 . . . Derelict Logs Recovered 3 | . . 1 . 1 . . . . . . . 1 . . . . . . . Drone Launches 2 | . . . . . . . . . . . . . . 2 . . . . . Drone Recoveries . | . . . . . . . . . . . . . . . . . . . . Exploration | -11 -10 -10 -10 -9 -8 -7 -7 -7 -7 -7 -6 -6 -6 -5 -4 -3 -3 -2 -1 ------------- Run | Scr Mat Min Exi Min Mat Fac Was Fac Low Low Fac Low Low Fac Fac Res Tes Res Acc Turns Passed 4109 | 41 47 109 197 232 92 340 58 941 140 31 223 126 10 319 295 134 182 347 245 Spaces Moved 7237 | 63 90 209 385 280 109 453 105 1032 393 97 544 398 35 561 611 263 342 604 663 Core 2034 | 62 90 209 385 280 109 453 105 323 . . . . . . . . . 18 . Treads 1 | 1 . . . . . . . . . . . . . . . . . . . Legs . | . . . . . . . . . . . . . . . . . . . . Wheels 621 | . . . . . . . . 621 . . . . . . . . . . . Hover . | . . . . . . . . . . . . . . . . . . . . Flight 4581 | . . . . . . . . 88 393 97 544 398 35 561 611 263 342 586 663 Fastest Speed 28 | 50 50 50 50 50 50 50 50 31 28 28 28 28 28 28 28 28 28 30 28 Average Speed 41 | 51 50 50 50 50 50 60 50 72 29 28 28 28 28 28 28 28 29 37 28 Slowest Speed 160 | 160 50 50 50 50 50 100 50 90 31 28 31 28 28 111 28 28 40 50 32 Overloaded Moves . | . . . . . . . . . . . . . . . . . . . . Propulsion Burnouts . | . . . . . . . . . . . . . . . . . . . . Robots Hopped 39 | . . . . . . . . . 1 . 4 . . 1 6 2 11 7 7 Cave-ins Triggered 4 | . . . . . 3 . . 1 . . . . . . . . . . . Exploration Rate (%) 33 | 4 27 41 85 53 10 20 93 32 71 12 19 60 5 16 21 10 56 21 14 Regions Visited 19 Branch Regions 8 Pre-discovered Areas . | . . . . . . . . . . . . . . . . . . . . Known Exits Taken 6 | . . . . . 1 . . 1 . . 1 . . . 1 1 . 1 . Unknown Exits Taken 11 | 1 1 1 1 1 . . . . 1 1 . 1 1 1 . . 1 . . Scrap Searched 8 | . . . . . . . . . 2 2 . 4 . . . . . . . Spaces Dug 116 | . . 1 . . 18 21 . 14 6 . 11 . . 14 11 6 1 11 2 Terrain Destroyed 116 | . . 1 . . 18 21 . 14 6 . 11 . . 14 11 6 1 11 2 Melee 116 | . . 1 . . 18 21 . 14 6 . 11 . . 14 11 6 1 11 2 Projectile . | . . . . . . . . . . . . . . . . . . . . AOE . | . . . . . . . . . . . . . . . . . . . . Actions | -11 -10 -10 -10 -9 -8 -7 -7 -7 -7 -7 -6 -6 -6 -5 -4 -3 -3 -2 -1 --------- Run | Scr Mat Min Exi Min Mat Fac Was Fac Low Low Fac Low Low Fac Fac Res Tes Res Acc Total 8131 | 69 91 211 389 371 127 495 108 1194 407 100 599 412 34 703 712 309 403 691 706 Wait 523 | . . . . 88 1 10 . 65 2 . 27 8 . 78 82 36 27 65 34 Move 7145 | 62 89 208 384 279 105 453 104 1030 390 96 535 397 34 558 600 258 324 590 649 Hop 30 | . . . . . . . . . 1 . 4 . . 1 4 2 6 6 6 Pick Up 58 | 4 . . 1 2 . . . 10 2 2 5 3 . 12 6 2 1 5 3 Fast Attach 61 | 3 1 1 1 1 . 4 3 19 3 . 5 1 . 4 2 . . 7 6 Attach 32 | . . . . . . . . 5 1 1 5 . . 2 3 3 2 4 6 Detach 6 | . . . . . . 1 . . . . 3 . . . 1 1 . . . Swap 5 | . . . . . . 1 . 3 . . . . . 1 . . . . . Drop 63 | . 1 1 3 1 . 2 1 21 2 1 4 3 . 14 3 1 2 3 . Fire . | . . . . . . . . . . . . . . . . . . . . Melee 143 | . . 1 . . 18 24 . 34 6 . 11 . . 14 11 6 5 11 2 Ram . | . . . . . . . . . . . . . . . . . . . . Kick . | . . . . . . . . . . . . . . . . . . . . Crush . | . . . . . . . . . . . . . . . . . . . . Escape Stasis 58 | . . . . . 3 . . 1 . . . . . 18 . . 36 . . Rewire . | . . . . . . . . . . . . . . . . . . . . Trap 6 | . . . . . . . . 6 . . . . . . . . . . . Miscellaneous 1 | . . . . . . . . . . . . . . 1 . . . . . Route ------- -11/Scrapyard -10/Materials -10/Mines (discovered 2 exits: [*Mat] / *Exi) -10/Exiles (discovered 2 exits: *Min x2) -9/Mines -8/Materials -7/Factory -7/Waste -7/Factory -7/Lower Caves -7/Lower Caves -6/Factory (discovered 2 exits: *Low x2) -6/Lower Caves -6/Lower Caves -5/Factory (discovered 2 exits: *Fac / Ext) -4/Factory (discovered 6 exits: *Res x4 / Upp x2) -3/Research (discovered 3 exits: Arm / *Tes x2) -3/Testing -2/Research (discovered 3 exits: *Acc x3) -1/Access To Epsilon Eridani History --------- Turn | Location | Event 13 | -11/Scrapyard | Discovered new exit (range 16) 42 | -11/Scrapyard | Entered Materials 86 | -10/Materials | Discovered new exit (range 8) 89 | -10/Materials | Entered Mines 93 | -10/Mines | Discovered new exit (range 12) 114 | -10/Mines | A weapon hastily lodged in a ceiling crevice suddenly fell to the ground 124 | -10/Mines | Assembled infested the area 143 | -10/Mines | Learned location of 1 exit from Materials 151 | -10/Mines | Joined a pair of Derelicts in attacking an 0b10 outpost 196 | -10/Mines | Discovered new exit (range 5) 198 | -10/Mines | Entered Exiles 206 | -10/Exiles | Discovered new exit (range 15) 211 | -10/Exiles | Met 8R-AWN 220 | -10/Exiles | Met EX-HEX 243 | -10/Exiles | Met EX-DEC 253 | -10/Exiles | Visited The Gauntlet 307 | -10/Exiles | Met EX-BIN 308 | -10/Exiles | Build established: Mutant 312 | -10/Exiles | Aligned with FarCom system 313 | -10/Exiles | Given EX-Vault access code 324 | -10/Exiles | Opened EX-Vault 328 | -10/Exiles | Found Trap Reconfigurator 340 | -10/Exiles | Warned to stay clear of 0b10 Research branches 389 | -10/Exiles | Discovered new exit (range 14) 395 | -10/Exiles | Left Exiles lab with Trap Reconfigurator 395 | -10/Exiles | Entered Mines 462 | -9/Mines | Met a Derelict shopkeep closing up shop 508 | -9/Mines | Discovered new exit (range 12) 627 | -9/Mines | Entered Materials 627 | -8/Materials | Evolved 4 slots: Propulsion x2, Utility x2 628 | -8/Materials | Identified exit to Factory 683 | -8/Materials | Crushed by falling debris 702 | -8/Materials | Crushed by falling debris 704 | -8/Materials | Crushed by falling debris 719 | -8/Materials | Entered Factory 719 | -7/Factory | Evolved 2 slots: Power x1, Propulsion x1 720 | -7/Factory | Identified exit to Lower Caves 1059 | -7/Factory | Sucked down chute 1059 | -7/Factory | Entered Waste 1064 | -7/Waste | Spotted C-40 Crusher 1074 | -7/Waste | EMP discharged 1074 | -7/Waste | System corruption reached 10% 1082 | -7/Waste | Spotted C-40 Crusher 1086 | -7/Waste | Spotted C-40 Crusher 1089 | -7/Waste | Spotted C-40 Crusher 1101 | -7/Waste | Spotted C-40 Crusher 1103 | -7/Waste | Spotted C-40 Crusher 1109 | -7/Waste | Discovered new exit (range 12) 1117 | -7/Waste | Entered Factory 1249 | -7/Factory | Crushed by falling debris 2054 | -7/Factory | Discovered exit to Lower Caves (range 8) 2058 | -7/Factory | Entered Lower Caves 2122 | -7/Lower Caves | Attracted the attention of an 0b10 checkpoint 2193 | -7/Lower Caves | Discovered new exit (range 14) 2198 | -7/Lower Caves | Entered another Lower Caves area 2227 | -7/Lower Caves | Discovered new exit (range 5) 2229 | -7/Lower Caves | Entered Factory 2229 | -6/Factory | Evolved 2 slots: Utility x2 2327 | -6/Factory | Identified exit to Lower Caves 2341 | -6/Factory | Fabricated Xenon Bombardment Thruster? 2347 | -6/Factory | Build established: Hacker-Sprinter 2378 | -6/Factory | Fabricated Xenon Bombardment Thruster (x2) 2389 | -6/Factory | Spotted B-75 Beast 2452 | -6/Factory | Entered Lower Caves 2576 | -6/Lower Caves | Discovered new exit (range 7) 2578 | -6/Lower Caves | Entered another Lower Caves area 2578 | -6/Lower Caves | Discovered new exit (range 13) 2588 | -6/Lower Caves | Entered Factory 2588 | -5/Factory | Evolved 2 slots: Utility x2 2589 | -5/Factory | Identified exit to Extension 2674 | -5/Factory | Fabricated Xenon Bombardment Thruster (x2) 2718 | -5/Factory | Fabricated Xenon Bombardment Thruster (x2) 2764 | -5/Factory | Fabricated Xenon Bombardment Thruster? 2860 | -5/Factory | Build established: Wizard-Sprinter 2902 | -5/Factory | Discovered new exit (range 12) 2907 | -5/Factory | Entered another Factory area 2907 | -4/Factory | Accompanied by 1 ally 2907 | -4/Factory | Evolved 2 slots: Utility x2 2961 | -4/Factory | Fabricated Mak. Hacking Suite (x1) 3145 | -4/Factory | Identified exit to Upper Caves 3145 | -4/Factory | Identified exit to Research 3202 | -4/Factory | Entered Research 3202 | -3/Research | Accompanied by 1 ally 3202 | -3/Research | Evolved 2 slots: Utility x2 3207 | -3/Research | Identified exit to Armory 3207 | -3/Research | Identified exit to Testing 3263 | -3/Research | Fabricated Reaction Control System? 3336 | -3/Research | Entered Testing 3337 | -3/Testing | Maximum security lockdown engaged 3501 | -3/Testing | Spotted Striker 3515 | -3/Testing | Discovered new exit (range 5) 3518 | -3/Testing | Entered Research 3518 | -2/Research | Evolved 2 slots: Propulsion x1, Utility x1 3539 | -2/Research | Repaired Mic. Fission Core 3547 | -2/Research | Lost 6 parts (1p3n1u1w) 3560 | -2/Research | Repaired Field Propulsion Array 3642 | -2/Research | Spotted B-90 Cyclops 3687 | -2/Research | Fabricated Exp. Hacking Suite? 3774 | -2/Research | Spotted B-90 Cyclops 3779 | -2/Research | Build established: Wizard-Mutant 3806 | -2/Research | Identified exit to Access 3865 | -2/Research | Entered Access 3865 | -1/Access | Evolved 2 slots: Propulsion x1, Utility x1 3874 | -1/Access | Identified exit to Surface 3886 | -1/Access | Lost 4 parts (3n1u) 3943 | -1/Access | Fabricated Cloaking Device (x1) 4003 | -1/Access | Fabricated Reaction Control System (x1) 4063 | -1/Access | Fabricated Impulse Thruster? 4072 | -1/Access | Local fabrication network quarantined 4110 | *** | Escaped! Last Messages --------------- ETC: 58 04061_ Acquired Cloaking Device. 04063_ >> FABRICATOR: Completed Impulse Thruster? 04072_ ALERT: Fabrication network compromised, local systems quarantined. 04106_ K-01 Serf cleans the Terminal. 04107_ Slug penetrates Sealed Barrier. 04107_ Connecting with Terminal... >>Open Sealed Barrier opened. 04107_ Connecting with Terminal... >>Force(Sabotage) SYSTEM_VULNERABLE[Wave Collapse Detector] NETWORK_OVERLOAD COORDINATES_RETRIEVED 04107_ ALERT: Suspicious activity at Terminal A001. Dispatching Investigation squad. 04108_ Slug penetrates Terminal. 04108_ The Access Shell folds into the floor. [Achievement: Epsilon Run] [Achievement: Pacifist] Map ----- +----------------------------------------------------+ | #?????????????????????????????????????????? | | #??????????????? ?????????????????????????? | | #????????????? ?????????????????????????? | | ####"###??##+######## ????????????????????????? | | ###"####### *! ????????????????????????? | | # = !! ???????????????????????? | | # !! ???????????????????????? | | """"" #!! ???????????????????????? | | """""" #!! "??????????????????????? | | """""" # "??????????????????????? | | """"" # ?????????????????????? | | # ?????????????????????? | | # ?????????????????????? | | # ########????????BB??????????????????? | | w #???????????????BB??????????????????? | | # #???????????????????????????????????? | | #w #???????????????????????????????????? | | ########### #???????????????????????????????????? | | ??????????# #?????###???????????????????????????? | | ??????????# ####### ##########??????????????????? | | ??????????# """T""" "??????????????????? | | ??????????# """ """ "????BB????????????? | | ??????????# h "????BB????????????? | | ??????????#kk "????????????p?????? | | ??????????# "" "??????????????????? | | ??????????# h @" "??????????????????? | | ??????????# "??????????????????? | | ??????????# "????BB????????????? | | ??????????# "????BB????????????? | | ??????????# "??????????????????? | | ??????????# ####### ##########??????????????????? | | ??????????# ??????###???????????????????????????? | | ??????????# ????????????????????????????????????? | | ??????????# ?????????????????????????????p??????? | | ??????????# ????????????????????????????????????? | | ??????????# ???????????Y????????w???????????????? | | ??????????# ????????????????????????????????????? | | ??????????? ????????????????????????????????????? | | ?????????????????????????????????????????????????? | | ?????????????????????????????????????????????????? | | ?????????????????????????????????????????????????? | | ?????????????????????????????????????????????????? | | ???????????????????????p?????????????????????????? | | ?????????????????????????????????????????????????? | | ?????????????????????????????????????????????????? | | ?????????????????????????????????????????????????? | | ?????????????????????????????????????????????????? | | ?????????????????????????????????????????????????? | | ?????????????????????????????????????????????????? | | ?????????????????????????????????????????????????? | +----------------------------------------------------+ Best States ------------- Heat Dissipation 52 Energy Generation 45 Energy Capacity 740 Matter Stores 300 Matter Capacity 300 Sight Range 16 Robot Scan Range 20 Terrain Scan Density 185 Jamming Range 8 Cloak Strength 2 Armor Coverage 150 Resistance: TH 20 Evasion (%) 76 Recoil Reduction 1 Offensive Hacking 67 Defensive Hacking 34 Item Schematics ----------------- Mak. Hacking Suite | -6/Factory | Scanalyzed Xenon Bombardment Thruster | -6/Factory | Scanalyzed Mic. Nuclear Core | -6/Factory | Scanalyzed Adv. Drone Bay | -4/Factory | Hacked Impulse Thruster | -4/Factory | Hacked Reaction Control System | -4/Factory | Hacked Cloaking Device | -4/Factory | Scanalyzed Mic. Fission Core | -4/Factory | Scanalyzed Field Propulsion Array | -4/Factory | Scanalyzed Imp. Maneuvering Thrusters | -4/Factory | Scanalyzed Nuclear Pulse Thruster | -4/Factory | Scanalyzed Exp. Hacking Suite | -3/Research | Hacked Robot Schematics ------------------ G-50 Soldier | -4/Factory | Hacked O-32 Director | -3/Research | Hacked Fabricated ------------ Xenon Bombardment Thruster | x2 | -6/Factory Xenon Bombardment Thruster | x2 | -6/Factory Xenon Bombardment Thruster | x2 | -5/Factory Xenon Bombardment Thruster | x2 | -5/Factory Xenon Bombardment Thruster | x2 | -5/Factory Mak. Hacking Suite | x1 | -4/Factory Reaction Control System | x1 | -3/Research Exp. Hacking Suite | x1 | -2/Research Cloaking Device | x1 | -1/Access Reaction Control System | x1 | -1/Access Impulse Thruster | x2 | -1/Access Alien Tech Used ----------------- None Achievements -------------- Epsilon Run Pacifist Production Line Challenges ------------ None Game ------ Seed CoolingAlertNeutralizer Manual? 0 Play Time 02:11:51 Cumulative 29.2 hours Start 2020.04.13 @ 16:54:30 End 2020.04.14 @ 10:40:57 Sessions 5 Manual Loads 0 Difficulty Rogue Special Mode None Game No. 11 Rogue 11 Adventurer 0 Explorer 0 Win Type 0 Total 2 Types 1/0/0/1/0/0/0 Lore% 41 Gallery% 39 Achievement% 39 Wizard Run 0 Options --------- ASCII 0 Keyboard 0 Movement Numpad Keybinds 0 Fullscreen 1 Font 18/SmallcapsGlow Map View 76x50 Tactical HUD 1 Map Filters NONE Filters NONE Steam 1 RUN: f485c3d6-22ae-40af-8527-35b81d081cf6